Workbook

Sheet ali
C2: بسم الله الرحمن الرحيم | F2: حساب فاتورة الكهرباء
C3: البداية👈 | D3: 44444 | G3: قديم معدلات 18
A4: 1 | B4: الشهر | C4: القراءة الجالية | D4: القراءة السابقة | E4: الشريحه | F4: الاستهلاك | G4: حساب الفاتورة2018 | H4: خدمة العملاء | I4: اجمالى الفاتورة | J4: 1 | K4: الشريحه
B5: يناير | C5: 44533 | D5: =IF(C5="","",IF(C5>0,D3,"")) -> 44444 | E5: =IF(C5="","",IF(F5<=50,1,IF(OR(F5=51,F5<=100),2,IF(OR(F5=101,F5<=200),3,IF(OR(F5=201,F5<=350),4,IF(OR(F5=351,F5<=650),5,IF(OR(F5=651,F5<=1000),6,IF(F5>1000,7,"")))))))) -> 2 | F5: =IF(C5="","",IF(C5>0,C5-D5,"")) -> 89 | G5: =IF(F5="","",IF(F5<=50,F5*22,IF(F5<=100,50*22+(F5-50)*30,IF(F5<=200,F5*36,IF(F5<=350,200*36+(F5-200)*70,IF(F5<=650,200*36+150*70+(F5-350)*90,IF(F5<=1000,200*36+150*70+300*90+(F5-650)*135,IF(F5>1000,F5*145)))))))/100) -> 22.7 | H5: =IF(F5="","",IF(F5=0,0,IF(F5<=50,1,IF(F5<=100,2,IF(F5<=200,6,IF(F5<=350,11,IF(F5<=650,15,IF(F5<=1000,25,IF(F5>1000,40,""))))))))) -> 2 | I5: =IF(F5="","",SUM(H5+G5)) -> 24.7 | K5: 1 | L5: 1
B6: فبراير | C6: 44655 | D6: =IF(C6="","",IF(C5>0,C5,"")) -> 44533 | E6: =IF(C6="","",IF(F6<=50,1,IF(OR(F6=51,F6<=100),2,IF(OR(F6=101,F6<=200),3,IF(OR(F6=201,F6<=350),4,IF(OR(F6=351,F6<=650),5,IF(OR(F6=651,F6<=1000),6,IF(F6>1000,7,"")))))))) -> 3 | F6: =IF(C6="","",IF(C6>0,C6-D6,"")) -> 122 | G6: =IF(F6="","",IF(F6<=50,F6*22,IF(F6<=100,50*22+(F6-50)*30,IF(F6<=200,F6*36,IF(F6<=350,200*36+(F6-200)*70,IF(F6<=650,200*36+150*70+(F6-350)*90,IF(F6<=1000,200*36+150*70+300*90+(F6-650)*135,IF(F6>1000,F6*145)))))))/100) -> 43.92 | H6: =IF(F6="","",IF(F6=0,0,IF(F6<=50,1,IF(F6<=100,2,IF(F6<=200,6,IF(F6<=350,11,IF(F6<=650,15,IF(F6<=1000,25,IF(F6>1000,40,""))))))))) -> 6 | I6: =IF(F6="","",SUM(H6+G6)) -> 49.92 | K6: 2 | L6: 2
B7: مارس | C7: 55677 | D7: =IF(C7="","",IF(C6>0,C6,"")) -> 44655 | E7: 7 | F7: 11022 | G7: 15981.9 | H7: 40 | I7: 16021.9 | K7: 3 | L7: 6
B8: أبريل | C8: 55687 | D8: 55677 | E8: 1 | F8: 10 | G8: 2.2 | H8: 1 | I8: 3.2 | K8: 4 | L8: 11
B9: مايو | C9: 55777 | D9: 55687 | E9: 2 | F9: 90 | G9: 23 | H9: 2 | I9: 25 | K9: 5 | L9: 15
B10: يونيو | C10: 88888 | D10: 55777 | E10: 7 | F10: 33111 | G10: 48010.95 | H10: 40 | I10: 48050.95 | K10: 6 | L10: 25
B11: يوليه | C11: 99999 | D11: =IF(C11="","",IF(C10>0,C10,"")) -> 88888 | E11: 7 | F11: 11111 | G11: 16110.95 | H11: 40 | I11: 16150.95 | K11: 7 | L11: 40
B12: أغسطس
B13: سبتمبر
B14: أكتوبر
B15: نوفمبر | D15: =IF(C15="","",IF(C14>0,C14,"")) ->  | F15: =IF(C15="","",IF(C15>0,C15-D15,"")) -> 
B16: ديسمبر
C17: الكتابه هنا👆

Sheet ali1
J1: =50*K5+39*K6 -> 2270
C2: بسم الله الرحمن الرحيم | F2: حساب فاتورة الكهرباء
C3: البداية👈 | D3: 44444 | G3: معدلات من الجدول | J3: الجدول يتغير كل عام | K3: جنيه | L3: قرش
A4: 1 | B4: الشهر | C4: القراءة الجالية | D4: القراءة السابقة | E4: الشريحه | F4: الاستهلاك | G4: الفاتورة 2018 | H4: 1 | I4: الشريحه | J4: الاستهلاك | K4: حساب الفاتورة | L4: خدمة العملاء | N4: قيمة الفاتورة/جنيه | O4: خدمة/جنيه | P4: المجوع/جنيه
B5: يناير | C5: 44533 | D5: =IF(C5="","",IF(C5>0,D3,"")) -> 44444 | E5: =IF(C5="","",IF(F5<=50,1,IF(OR(F5=51,F5<=100),2,IF(OR(F5=101,F5<=200),3,IF(OR(F5=201,F5<=350),4,IF(OR(F5=351,F5<=650),5,IF(OR(F5=651,F5<=1000),6,IF(F5>1000,7,"")))))))) -> 1 | F5: 50 | G5: =IF(F5="","",IF(F5<=50,F5*$K$5+$L$5,IF(F5<=100,50*$K$5+$L$5+(F5-50)*$K$6+$L$6,IF(F5<=200,F5*$K$7+$L$7,IF(F5<=350,200*$K$7+$L$7+(F5-200)*$K$8+$L$8,IF(F5<=650,200*$K$7+$L$7+150*$K$8+$L$8+(F5-350)*$K$9+$L$9,IF(F5<=1000,200*$K$7+$L$7+150*$K$8+$L$8+300*$K$9+$L$9+(F5-650)*$K$10+$L$10,IF(F5>1000,F5*$K$11+$L$11)))))))/100) -> 12 | I5: 1 | J5: حتى 50 | K5: 22 | L5: 100 | M5: 1 | N5: =Salim_Facture(F5,$K$5,$K$6,$K$7,$K$8,$K$9,$K$10,$K$11) -> 1100 | O5: =(IF(F5<MIN($L$5:$L$11),MIN($L$5:$L$11),INDEX($L$5:$L$11,MATCH(F5,$L$5:$L$11))))/100 -> 1 | P5: =SUM(N5:O5) -> 1101
B6: فبراير | C6: 44655 | D6: =IF(C6="","",IF(C5>0,C5,"")) -> 44533 | E6: =IF(C6="","",IF(F6<=50,1,IF(OR(F6=51,F6<=100),2,IF(OR(F6=101,F6<=200),3,IF(OR(F6=201,F6<=350),4,IF(OR(F6=351,F6<=650),5,IF(OR(F6=651,F6<=1000),6,IF(F6>1000,7,"")))))))) -> 3 | F6: =IF(C6="","",IF(C6>0,C6-D6,"")) -> 122 | G6: =IF(F6="","",IF(F6<=50,F6*$K$5+$L$5,IF(F6<=100,50*$K$5+$L$5+(F6-50)*$K$6+$L$6,IF(F6<=200,F6*$K$7+$L$7,IF(F6<=350,200*$K$7+$L$7+(F6-200)*$K$8+$L$8,IF(F6<=650,200*$K$7+$L$7+150*$K$8+$L$8+(F6-350)*$K$9+$L$9,IF(F6<=1000,200*$K$7+$L$7+150*$K$8+$L$8+300*$K$9+$L$9+(F6-650)*$K$10+$L$10,IF(F6>1000,F6*$K$11+$L$11)))))))/100) -> 49.92 | I6: 2 | J6: من 51 الى 100 | K6: 30 | L6: 200 | M6: 2 | N6: =Salim_Facture(F6,$K$5,$K$6,$K$7,$K$8,$K$9,$K$10,$K$11) -> 3392 | O6: =(IF(F6<MIN($L$5:$L$11),MIN($L$5:$L$11),INDEX($L$5:$L$11,MATCH(F6,$L$5:$L$11))))/100 -> 1 | P6: =SUM(N6:O6) -> 3393
B7: مارس | C7: 55677 | D7: =IF(C7="","",IF(C6>0,C6,"")) -> 44655 | E7: 7 | F7: 11022 | G7: 16021.9 | I7: 3 | J7: من 101 الى 200 | K7: 36 | L7: 600 | M7: 6 | N7: 1668690 | O7: 40 | P7: 1668730
B8: أبريل | C8: 55687 | D8: 55677 | E8: 1 | F8: 10 | G8: 3.2 | I8: 4 | J8: من 201 الى 350 | K8: 70 | L8: 1100 | M8: 11 | N8: 220 | O8: 1 | P8: 221
B9: مايو | C9: 55777 | D9: 55687 | E9: 2 | F9: 90 | G9: 26 | I9: 5 | J9: من 351 الى 650 | K9: 90 | L9: 1500 | M9: 15 | N9: 2300 | O9: 1 | P9: 2301
B10: يونيو | C10: 88888 | D10: 55777 | E10: 6 | F10: 1000 | G10: 976.5 | I10: 6 | J10: من 651 الى 1000 | K10: 135 | L10: 2500 | M10: 25 | N10: 127750 | O10: 6 | P10: 127756
B11: يوليه | C11: 88938 | D11: 88888 | E11: 1 | F11: 50 | G11: 12 | I11: 7 | J11: اكبرمن 1000 | K11: 145 | L11: 4000 | M11: 40 | N11: 1100 | O11: 1 | P11: 1101
B12: أغسطس
B13: سبتمبر
B14: أكتوبر
B15: نوفمبر
B16: ديسمبر
C17: الكتابه هنا👆

Sheet ali mohamed ali
E3: قديم معدلات 18 | H3: معدلات من الجدول | K3: الجدول
A4: 1 | B4: الشهر | C4: الشريحه | D4: الاستهلاك | E4: حساب الفاتورة2018 | F4: خدمة العملاء | G4: اجمالى الفاتورة | H4: الفاتورة 2018 | I4: 1 | J4: الشريحه | K4: الاستهلاك | L4: حساب الفاتورة | M4: خدمة العملاء
B5: يناير | C5: =IF(D5="","",IF(D5<=50,1,IF(OR(D5=51,D5<=100),2,IF(OR(D5=101,D5<=200),3,IF(OR(D5=201,D5<=350),4,IF(OR(D5=351,D5<=650),5,IF(OR(D5=651,D5<=1000),6,IF(D5>1000,7,"")))))))) -> 2 | D5: 99 | E5: =IF(D5="","",IF(D5<=50,D5*22,IF(D5<=100,50*22+(D5-50)*30,IF(D5<=200,D5*36,IF(D5<=350,200*36+(D5-200)*70,IF(D5<=650,200*36+150*70+(D5-350)*90,IF(D5<=1000,200*36+150*70+300*90+(D5-650)*135,IF(D5>1000,D5*145)))))))/100) -> 25.7 | F5: =IF(D5="","",IF(D5=0,0,IF(D5<=50,1,IF(D5<=100,2,IF(D5<=200,6,IF(D5<=350,11,IF(D5<=650,15,IF(D5<=1000,25,IF(D5>1000,40,""))))))))) -> 2 | G5: =IF(D5="","",SUM(F5+E5)) -> 27.7 | H5: =IF(D5="","",IF(D5<=50,D5*$L$5+$M$5,IF(D5<=100,50*$L$5+$M$5+(D5-50)*$L$6+$M$6,IF(D5<=200,D5*$L$7+$M$7,IF(D5<=350,200*$L$7+$M$7+(D5-200)*$L$8+$M$8,IF(D5<=650,200*$L$7+$M$7+150*$L$8+$M$8+(D5-350)*$L$9+$M$9,IF(D5<=1000,200*$L$7+$M$7+150*$L$8+$M$8+300*$L$9+$M$9+(D5-650)*$L$10+$M$10,IF(D5>1000,D5*$L$11+$M$11)))))))/100) -> 28.7 | J5: 1 | K5: حتى 50 | L5: 22 | M5: 100 | N5: 1
B6: فبراير | C6: =IF(D6="","",IF(D6<=50,1,IF(OR(D6=51,D6<=100),2,IF(OR(D6=101,D6<=200),3,IF(OR(D6=201,D6<=350),4,IF(OR(D6=351,D6<=650),5,IF(OR(D6=651,D6<=1000),6,IF(D6>1000,7,"")))))))) -> 7 | D6: 1111 | E6: =IF(D6="","",IF(D6<=50,D6*22,IF(D6<=100,50*22+(D6-50)*30,IF(D6<=200,D6*36,IF(D6<=350,200*36+(D6-200)*70,IF(D6<=650,200*36+150*70+(D6-350)*90,IF(D6<=1000,200*36+150*70+300*90+(D6-650)*135,IF(D6>1000,D6*145)))))))/100) -> 1610.95 | F6: =IF(D6="","",IF(D6=0,0,IF(D6<=50,1,IF(D6<=100,2,IF(D6<=200,6,IF(D6<=350,11,IF(D6<=650,15,IF(D6<=1000,25,IF(D6>1000,40,""))))))))) -> 40 | G6: =IF(D6="","",SUM(F6+E6)) -> 1650.95 | H6: =IF(D6="","",IF(D6<=50,D6*$L$5+$M$5,IF(D6<=100,50*$L$5+$M$5+(D6-50)*$L$6+$M$6,IF(D6<=200,D6*$L$7+$M$7,IF(D6<=350,200*$L$7+$M$7+(D6-200)*$L$8+$M$8,IF(D6<=650,200*$L$7+$M$7+150*$L$8+$M$8+(D6-350)*$L$9+$M$9,IF(D6<=1000,200*$L$7+$M$7+150*$L$8+$M$8+300*$L$9+$M$9+(D6-650)*$L$10+$M$10,IF(D6>1000,D6*$L$11+$M$11)))))))/100) -> 1650.95 | J6: 2 | K6: من 51 الى 100 | L6: 30 | M6: 200 | N6: 2
B7: مارس | C7: 3 | D7: 170 | E7: 61.2 | F7: 6 | G7: 67.2 | H7: 67.2 | J7: 3 | K7: من 101 الى 200 | L7: 36 | M7: 600 | N7: 6
B8: أبريل | C8: 4 | D8: 280 | E8: 128 | F8: 11 | G8: 139 | H8: 145 | J8: 4 | K8: من 201 الى 350 | L8: 70 | M8: 1100 | N8: 11
B9: مايو | C9: 2 | D9: 51 | E9: 11.3 | F9: 2 | G9: 13.3 | H9: 14.3 | J9: 5 | K9: من 351 الى 650 | L9: 90 | M9: 1500 | N9: 15
B10: يونيو | C10: 6 | D10: 1000 | E10: 919.5 | F10: 25 | G10: 944.5 | H10: 976.5 | J10: 6 | K10: من 651 الى 1000 | L10: 135 | M10: 2500 | N10: 25
B11: يوليه | C11: 1 | D11: 50 | E11: 11 | F11: 1 | G11: 12 | H11: 12 | J11: 7 | K11: اكبرمن 1000 | L11: 145 | M11: 4000 | N11: 40
B12: أغسطس | C12: 3 | D12: 200 | E12: =IF(D12="","",IF(D12<=50,D12*22,IF(D12<=100,50*22+(D12-50)*30,IF(D12<=200,D12*36,IF(D12<=350,200*36+(D12-200)*70,IF(D12<=650,200*36+150*70+(D12-350)*90,IF(D12<=1000,200*36+150*70+300*90+(D12-650)*135,IF(D12>1000,D12*145)))))))/100) -> 72 | F12: 6 | G12: 78 | H12: =IF(D12="","",IF(D12<=50,D12*$L$5+$M$5,IF(D12<=100,50*$L$5+$M$5+(D12-50)*$L$6+$M$6,IF(D12<=200,D12*$L$7+$M$7,IF(D12<=350,200*$L$7+$M$7+(D12-200)*$L$8+$M$8,IF(D12<=650,200*$L$7+$M$7+150*$L$8+$M$8+(D12-350)*$L$9+$M$9,IF(D12<=1000,200*$L$7+$M$7+150*$L$8+$M$8+300*$L$9+$M$9+(D12-650)*$L$10+$M$10,IF(D12>1000,D12*$L$11+$M$11)))))))/100) -> 78
B13: سبتمبر | C13: 1 | D13: 20 | E13: =IF(D13="","",IF(D13<=50,D13*22,IF(D13<=100,50*22+(D13-50)*30,IF(D13<=200,D13*36,IF(D13<=350,200*36+(D13-200)*70,IF(D13<=650,200*36+150*70+(D13-350)*90,IF(D13<=1000,200*36+150*70+300*90+(D13-650)*135,IF(D13>1000,D13*145)))))))/100) -> 4.4 | F13: 1 | G13: 5.4 | H13: 5.4
B14: أكتوبر | C14: 4 | D14: 333 | E14: 165.1 | F14: 11 | G14: 176.1 | H14: 182.1
B15: نوفمبر | C15: 5 | D15: 555 | E15: 361.5 | F15: 15 | G15: 376.5 | H15: 393.5
B16: ديسمبر | C16: 2 | D16: 100 | E16: 26 | F16: 2 | G16: 28 | H16: 29
D19: الكتابه هنا👆

Sheet حساب فاتورة الكهرباء
A2: احسب فاتورتك بأسعار الكهرباء الجديدة..2018 --2019
A4: 50 كيلو وات ساعة شهريا (قيمة الفاتورة 12 جنيها بدلا من 7 جنيهات)
A6: 100 كيلو وات ساعة شهريا (قيمة الفاتورة 28 جنيها بدلا من 19.5 جنيه).
A8: 200 كيلو وات شهريا (قيمة الفاتورة التي يتحملها المواطن 78 جنيها بدلا من 60 جنيها).
A10: 300 كيلو وات (قيمة الفاتورة التي يتحملها المواطن 153 جنيها بدلا من 120 جنيها).
A12: 400 كيلو وات (قيمة الفاتورة التي يتحملها المواطن 237 جنيها بدلا من 189 جنيها).
A14: 500 كيلو وات ساعة (قيمة الفاتورة التي يتحملها المواطن 327 جنيها بدلا من 264 جنيها).
A16: 600 كيلو وات (قيمة الفاتورة التي يتحملها المواطن 417 جنيها بدلا من 339 جنيها).
A18: 650 كيلو وات (قيمة الفاتورة التى يتحملها المواطن 462 جنيها بدلا 376 جنيه و نصف جنيه.
A20: 750 كيلو وات (قيمة الفاتورة التى يتحملها المواطن 607 جنيهات بدلا من 511.% جنيه).
A22: ألف كيلو وات (قيمة الفاتورة التي يتحملها المواطن 944 جنيه بدلا من 809 جنيهات)
A23: -------------------------------------------
A25: الشريحة الأولى من صفر إلى 50 كيلو وات (22 قرشا بدلا من 13 قرشا).
A27: الشريحة الثانية من 51 إلى 100 كيلو وات (30 قرشا بدلا من 22 قرشا).
A29: الشريحة الثالثة من صفر حتى 200 كيلو وات ( .36 قرشا بدلا من 27 قرشًا .
A31: الشريحة الرابعة من 201 إلى 350 كيلو وات ( 70 قرشا بدلا من 55 قرشًا .
A33: الشريحة الخامسة من 351 إلى 650 كيلو وات ( 90 قرش بدلا من75 قرشًا.
A35: الشريحة السادسة من651 إلى ألف كليو وات ( 135 قرشا بدلا من 125 قرشًا.
A37: الشريحة السابعة من يزيد عن 1000 كيلو وات لا يحصلون على دعم ( 145 قرشا بدلا من 135 قرشًا.

Sheet Salim
J1: =50*K5+39*K6 -> 2270
C2: بسم الله الرحمن الرحيم | F2: حساب فاتورة الكهرباء
C3: البداية👈 | D3: 44444 | G3: معدلات من الجدول | J3: الجدول يتغير كل عام | K3: جنيه | L3: قرش
A4: 1 | B4: الشهر | C4: القراءة الجالية | D4: القراءة السابقة | E4: الشريحه | F4: الاستهلاك | G4: الفاتورة 2018 | H4: 1 | I4: الشريحه | J4: الاستهلاك | K4: حساب الفاتورة | L4: خدمة العملاء | N4: قيمة الفاتورة/جنيه | O4: خدمة/جنيه | P4: المجوع/جنيه | S4: 0 | T4: 1
B5: يناير | C5: 44533 | D5: =IF(C5="","",IF(C5>0,D3,"")) -> 44444 | E5: =IF(F5="","",INDEX($T$4:$T$10,MATCH(F5,$S$4:$S$10))) -> 2 | F5: =IF(C5="","",IF(C5>0,C5-D5,"")) -> 89 | G5: =IF(F5="","",IF(F5<=50,F5*$K$5+$L$5,IF(F5<=100,50*$K$5+$L$5+(F5-50)*$K$6+$L$6,IF(F5<=200,F5*$K$7+$L$7,IF(F5<=350,200*$K$7+$L$7+(F5-200)*$K$8+$L$8,IF(F5<=650,200*$K$7+$L$7+150*$K$8+$L$8+(F5-350)*$K$9+$L$9,IF(F5<=1000,200*$K$7+$L$7+150*$K$8+$L$8+300*$K$9+$L$9+(F5-650)*$K$10+$L$10,IF(F5>1000,F5*$K$11+$L$11)))))))/100) -> 25.7 | I5: 1 | J5: حتى 50 | K5: 22 | L5: 100 | M5: 1 | N5: =Salim_Facture(F5,$K$5,$K$6,$K$7,$K$8,$K$9,$K$10,$K$11) -> 2270 | O5: =(IF(F5<MIN($L$5:$L$11),MIN($L$5:$L$11),INDEX($L$5:$L$11,MATCH(F5,$L$5:$L$11))))/100 -> 1 | P5: =SUM(N5:O5) -> 2271 | S5: 51 | T5: 2
B6: فبراير | C6: 44655 | D6: =IF(C6="","",IF(C5>0,C5,"")) -> 44533 | E6: =IF(F6="","",INDEX($T$4:$T$10,MATCH(F6,$S$4:$S$10))) -> 3 | F6: 122 | G6: =IF(F6="","",IF(F6<=50,F6*$K$5+$L$5,IF(F6<=100,50*$K$5+$L$5+(F6-50)*$K$6+$L$6,IF(F6<=200,F6*$K$7+$L$7,IF(F6<=350,200*$K$7+$L$7+(F6-200)*$K$8+$L$8,IF(F6<=650,200*$K$7+$L$7+150*$K$8+$L$8+(F6-350)*$K$9+$L$9,IF(F6<=1000,200*$K$7+$L$7+150*$K$8+$L$8+300*$K$9+$L$9+(F6-650)*$K$10+$L$10,IF(F6>1000,F6*$K$11+$L$11)))))))/100) -> 49.92 | I6: 2 | J6: من 51 الى 100 | K6: 30 | L6: 200 | M6: 2 | N6: =Salim_Facture(F6,$K$5,$K$6,$K$7,$K$8,$K$9,$K$10,$K$11) -> 3392 | O6: =(IF(F6<MIN($L$5:$L$11),MIN($L$5:$L$11),INDEX($L$5:$L$11,MATCH(F6,$L$5:$L$11))))/100 -> 1 | P6: =SUM(N6:O6) -> 3393 | S6: 101 | T6: 3
B7: مارس | C7: 55677 | D7: =IF(C7="","",IF(C6>0,C6,"")) -> 44655 | E7: 7 | F7: 11022 | G7: 16021.9 | I7: 3 | J7: من 101 الى 200 | K7: 36 | L7: 600 | M7: 6 | N7: 1668690 | O7: 40 | P7: 1668730 | S7: 201 | T7: 4
B8: أبريل | C8: 55687 | D8: 55677 | E8: 1 | F8: 10 | G8: 3.2 | I8: 4 | J8: من 201 الى 350 | K8: 70 | L8: 1100 | M8: 11 | N8: 220 | O8: 1 | P8: 221 | S8: 351 | T8: 5
B9: مايو | C9: 55777 | D9: 55687 | E9: 2 | F9: 90 | G9: 26 | I9: 5 | J9: من 351 الى 650 | K9: 90 | L9: 1500 | M9: 15 | N9: 2300 | O9: 1 | P9: 2301 | S9: 651 | T9: 6
B10: يونيو | C10: 88888 | D10: 55777 | E10: 7 | F10: 33111 | G10: 48050.95 | I10: 6 | J10: من 651 الى 1000 | K10: 135 | L10: 2500 | M10: 25 | N10: 4871595 | O10: 40 | P10: 4871635 | S10: 1001 | T10: 7
B11: يوليه | C11: 88938 | D11: 88888 | E11: 1 | F11: 50 | G11: 12 | I11: 7 | J11: اكبرمن 1000 | K11: 145 | L11: 4000 | M11: 40 | N11: 1100 | O11: 1 | P11: 1101
B12: أغسطس
B13: سبتمبر
B14: أكتوبر
B15: نوفمبر | E15: =IF(C15="","",IF(F15<=50,1,IF(OR(F15=51,F15<=100),2,IF(OR(F15=101,F15<=200),3,IF(OR(F15=201,F15<=350),4,IF(OR(F15=351,F15<=650),5,IF(OR(F15=651,F15<=1000),6,IF(F15>1000,7,"")))))))) -> 
B16: ديسمبر
C17: الكتابه هنا👆
